[Event "XI Paracin Festival 2018"]
[Site "Paracin"]
[Date "2018.07.07"]
[Round "2"]
[White "Parnali, S Dharia"]
[Black "Rahul, Srivatshav P"]
[Result "1-0"]
[ECO "E62"]
[WhiteElo "2170"]
[BlackElo "2397"]
[Annotator "NA"]
[PlyCount "135"]
[EventDate "2018.07.06"]
[EventType "swiss"]
[EventCountry "SRB"]
[SourceTitle "playchess.com"]
[Source "ChessBase"]
[SourceQuality "1"]
[TimeControl "5400+30"]

1. d4 {[%emt 0:00:16]} Nf6 {[%emt 0:00:00]} 2. c4 {[%emt 0:00:37]} g6 {[%emt 0:00:00]} 3. Nc3 {[%emt 0:00:20]} Bg7 {[%emt 0:00:00]} 4. Nf3 {[%emt 0:00:25]} O-O {[%emt 0:00:09] LiveBook: 11839 Games} 5. g3 {[%emt 0:00:49]} d6 {[%emt 0:00:11]} 6. Bg2 {[%emt 0:00:05]} c6 {[%emt 0:00:11]} 7. O-O {[%emt 0:00:23]} Qa5 {[%emt 0:00:06]} 8. Bd2 {[%emt 0:08:59]} Qh5 {[%emt 0:00:14]} 9. Re1 {[%emt 0:00:47] E62: King's Indian: Fianchetto: 6...c6 and Panno Variation (6...Nc6) without ...a6} (9. Qb3 d5 10. cxd5 cxd5 11. Ne5 Nc6 12. Nxc6 bxc6 13. Qa4 Bh3 14. Rfc1 Bxg2 15. Kxg2 e5 16. dxe5 Ng4 17. h3 Nxe5 {1-0 (55) Banusz,T (2641)-Nagle,S (2432) chess.com INT 2018}) 9... e5 {[%emt 0:05:38]} 10. Bg5 {[%emt 0:02:45]} Bf5 $146 {[%emt 0:15:54]} ({Predecessor:} 10... Bg4 11. dxe5 dxe5 12. Bxf6 Bxf6 13. Qc2 Na6 14. a3 Bf5 15. e4 Bg4 16. Nd2 Rad8 {0-1 (26) Hodak,S (2240)-Jovanovic,Z (2471) Vinkovci 2005}) 11. dxe5 {[%emt 0:01:40]} dxe5 {[%emt 0:00:09]} 12. Qd6 {[%emt 0:07:27]} Nbd7 {[%emt 0:11:49]} 13. Bxf6 {[%emt 0:09:38]} Bxf6 {[%emt 0:07:13]} 14. Ne4 {[%emt 0:02:12]} Bxe4 {[%emt 0:07:07]} 15. Qxd7 {[%emt 0:00:06]} Qf5 {[%emt 0:06:11]} 16. Rad1 {[%emt 0:03:51]} Rab8 {[%emt 0:01:28]} 17. Bh3 {[%emt 0:02:30]} Qxd7 {[%emt 0:06:40]} 18. Rxd7 {[%emt 0:00:12]} c5 {[%emt 0:00:16]} 19. Rd6 {[%emt 0:04:50]} Be7 {[%emt 0:00:59]} 20. Rd7 {[%emt 0:00:10]} Bf6 {[%emt 0:00:23]} 21. Rd6 {[%emt 0:00:12]} Kg7 {[%emt 0:07:41]} 22. Red1 {[%emt 0:01:11]} Bc6 {[%emt 0:02:47]} 23. Bd7 $11 {[%emt 0:05:44]} Bxd7 {[%emt 0:00:58]} 24. Rxd7 {[%emt 0:00:07]} e4 {[%emt 0:00:27]} 25. Nd2 {[%emt 0:00:13]} Rfe8 {[%emt 0:02:10]} 26. b3 {[%emt 0:01:15]} e3 {[%emt 0:00:47]} 27. Nf3 {[%emt 0:00:18]} g5 {[%emt 0:02:03]} 28. R1d5 {[%emt 0:01:42]} g4 {[%emt 0:05:44]} 29. Nh4 {[%emt 0:03:30]} exf2+ {[%emt 0:01:48]} 30. Kxf2 {[%emt 0:00:08]} Re4 {[%emt 0:02:06]} 31. Nf5+ {[%emt 0:01:21]} Kg6 {[%emt 0:00:11]} 32. Rxc5 {[%emt 0:03:04]} Rbe8 {[%emt 0:00:25]} 33. e3 {[%emt 0:00:12]} b6 {[%emt 0:03:50]} 34. Rcd5 {[%emt 0:00:29]} R8e6 {[%emt 0:00:55]} 35. Rxa7 {[%emt 0:10:00]} Bg5 {[%emt 0:00:15]} 36. Ra8 {[%emt 0:01:59]} Bxe3+ {[%emt 0:02:38]} 37. Nxe3 {[%emt 0:02:07]} Rxe3 {[%emt 0:00:04]} 38. Rg8+ {[%emt 0:00:11]} Kf6 {[%emt 0:01:12]} 39. Rxg4 {[%emt 0:00:42]} Re2+ {[%emt 0:00:04]} 40. Kg1 {[%emt 0:01:58]} Re1+ {[%emt 0:00:47]} 41. Kg2 {[%emt 0:00:28]} R1e2+ {[%emt 0:00:38]} 42. Kh3 {[%emt 0:01:27]} Rxa2 {[%emt 0:00:03]} 43. Rf4+ {[%emt 0:00:34]} Kg6 {[%emt 0:00:33]} 44. Rg4+ {[%emt 0:01:16]} Kf6 {[%emt 0:00:05]} 45. Rf4+ {[%emt 0:00:20]} Kg6 {[%emt 0:00:05]} 46. Rd8 {[%emt 0:00:45]} Kg7 {[%emt 0:00:58]} 47. Rd7 {[%emt 0:01:04]} Rh6+ {[%emt 0:00:46]} 48. Kg4 {[%emt 0:00:02]} Rg6+ {[%emt 0:00:56]} 49. Kf3 {[%emt 0:00:12]} Rxh2 {[%emt 0:00:07]} 50. Rfxf7+ {[%emt 0:01:15]} Kg8 {[%emt 0:00:05]} 51. Rfe7 {[%emt 0:00:30]} Rf6+ {[%emt 0:00:15]} 52. Ke3 {[%emt 0:00:07]} Rf8 {[%emt 0:01:05]} 53. Rb7 {[%emt 0:01:03]} Rh3 {[%emt 0:00:15]} 54. Rg7+ {[%emt 0:01:03]} Kh8 {[%emt 0:00:03]} 55. Rg4 {[%emt 0:00:35]} Rh6 {[%emt 0:00:22]} 56. Kd4 {[%emt 0:01:41]} Rd8+ {[%emt 0:01:28]} 57. Kc3 {[%emt 0:00:11]} Rhd6 {[%emt 0:01:14]} 58. Kb4 {[%emt 0:00:29]} Rc8 {[%emt 0:01:17]} 59. Rgg7 {[%emt 0:02:00]} h6 {[%emt 0:00:27]} 60. Rh7+ {[%emt 0:00:38]} Kg8 {[%emt 0:00:12]} 61. Rbg7+ {[%emt 0:01:03]} Kf8 {[%emt 0:00:04]} 62. Rd7 {[%emt 0:01:46]} Rxd7 {[%emt 0:00:11]} 63. Rxd7 {[%emt 0:00:03]} Rc6 {[%emt 0:00:06]} 64. Kb5 {[%emt 0:00:18]} Rg6 {[%emt 0:00:03]} 65. b4 {[%emt 0:00:39]} Rg4 {[%emt 0:01:06]} 66. Rh7 {[%emt 0:01:01]} Rg6 {[%emt 0:00:09]} 67. Rb7 {[%emt 0:00:26]} Rxg3 {[%emt 0:00:26]} 68. Kxb6 {[%emt 0:00:25]} 1-0

[Event "XI Paracin Festival 2018"]
[Site "Paracin"]
[Date "2018.07.07"]
[Round "2"]
[White "Uuriintuya, Uurtsaikh"]
[Black "Peng, Shunkai"]
[Result "0-1"]
[ECO "B90"]
[WhiteElo "2158"]
[BlackElo "2390"]
[Annotator "NA"]
[PlyCount "192"]
[EventDate "2018.07.06"]
[EventType "swiss"]
[EventCountry "SRB"]
[SourceTitle "playchess.com"]
[Source "ChessBase"]
[SourceQuality "1"]
[TimeControl "5400+30"]

1. e4 {[%emt 0:00:00]} c5 {[%emt 0:00:46]} 2. Nf3 {[%emt 0:00:00]} d6 {[%emt 0:00:20]} 3. d4 {[%emt 0:00:00]} cxd4 {[%emt 0:00:08]} 4. Nxd4 {[%emt 0:00:00]} Nf6 {[%emt 0:00:10]} 5. Nc3 {[%emt 0:00:00]} a6 {[%emt 0:00:15]} 6. a4 {[%emt 0:00:36]} g6 {[%emt 0:00:30]} 7. Be2 {[%emt 0:00:17]} Bg7 {[%emt 0:01:20]} 8. Be3 {[%emt 0:00:41]} Nc6 {[%emt 0:01:06]} 9. O-O {[%emt 0:00:32]} O-O {[%emt 0:01:39]} 10. Qd2 {[%emt 0:01:01]} Bd7 {[%emt 0:10:42]} 11. f3 {[%emt 0:12:39]} Rc8 {[%emt 0:01:42]} 12. Rfd1 {[%emt 0:03:37] B90: Sicilian Najdorf: Unusual White 6th moves, 6 Be3 Ng4 and 6 Be3 e5} Ne5 {[%emt 0:05:53] LiveBook: 5 Games} 13. Nd5 {[%emt 0:06:16]} Nxd5 {[%emt 0:22:02]} 14. exd5 {[%emt 0:00:15]} Qc7 {[%emt 0:00:37]} 15. b3 {[%emt 0:19:20]} Qc3 {[%emt 0:01:19] [#]} 16. Bf2 $146 {[%emt 0:01:12]} ({Predecessor:} 16. Qxc3 Rxc3 17. Bd2 Rcc8 18. c3 {1-0 (42) Guliyev,N (2690)-Faure,S (2110) Le Port Marly 2012}) 16... Qxd2 {[%emt 0:08:47]} 17. Rxd2 {[%emt 0:00:04]} Rc3 {[%emt 0:00:09]} 18. Rdd1 {[%emt 0:01:55]} g5 {[%emt 0:12:58]} 19. Be1 {[%emt 0:05:57]} Rcc8 {[%emt 0:00:13]} 20. c4 {[%emt 0:00:57]} Ng6 {[%emt 0:00:22]} 21. Ra2 {[%emt 0:03:32]} Rfe8 $14 {[%emt 0:03:27]} 22. Bf2 {[%emt 0:03:49]} h6 {[%emt 0:02:06]} 23. b4 {[%emt 0:10:47]} e6 {[%emt 0:05:33]} 24. dxe6 {[%emt 0:02:09]} fxe6 {[%emt 0:00:08]} 25. Nb3 {[%emt 0:01:25]} Be5 {[%emt 0:01:59]} 26. Na5 {[%emt 0:06:31]} Nf4 {[%emt 0:02:33]} 27. Bf1 {[%emt 0:00:41]} Rb8 {[%emt 0:01:55]} 28. g3 {[%emt 0:03:27]} Ng6 {[%emt 0:00:19]} 29. c5 {[%emt 0:03:06]} d5 {[%emt 0:01:01]} 30. Nb3 {[%emt 0:01:51]} Ra8 {[%emt 0:01:02]} 31. Na5 {[%emt 0:01:16]} Rab8 {[%emt 0:01:08]} 32. Nb3 {[%emt 0:00:13]} Ra8 {[%emt 0:02:55]} 33. Na5 {[%emt 0:01:02]} Rab8 {[%emt 0:01:33]} 34. Nc4 {[%emt 0:04:14]} Bc7 {[%emt 0:01:38]} 35. Be2 {[%emt 0:01:46]} Red8 {[%emt 0:02:16]} 36. Ne3 {[%emt 0:00:24]} Ra8 {[%emt 0:01:09]} 37. Be1 {[%emt 0:01:27]} Be5 {[%emt 0:00:55]} 38. Bd3 {[%emt 0:00:49]} Be8 {[%emt 0:00:49]} 39. Kg2 {[%emt 0:00:27]} Bg7 {[%emt 0:00:20]} 40. Bc2 {[%emt 0:00:59]} Ne5 {[%emt 0:01:58]} 41. Bb3 {[%emt 0:00:25]} Nc6 {[%emt 0:01:01]} 42. Bc2 {[%emt 0:01:56]} a5 {[%emt 0:01:21]} 43. b5 {[%emt 0:00:21]} Nb4 {[%emt 0:00:11]} 44. Bxb4 {[%emt 0:00:30]} axb4 {[%emt 0:00:01]} 45. Bb3 {[%emt 0:00:43]} Rdc8 {[%emt 0:00:28]} 46. Rc1 {[%emt 0:02:05]} Bd4 {[%emt 0:00:25]} 47. Re2 {[%emt 0:00:36]} Bf7 {[%emt 0:01:38]} 48. Ng4 {[%emt 0:00:48]} Kg7 {[%emt 0:00:11]} 49. Ne5 {[%emt 0:00:24]} Rxc5 {[%emt 0:01:46]} 50. Rxc5 {[%emt 0:00:52]} Bxc5 {[%emt 0:00:01]} 51. Rc2 {[%emt 0:00:45]} Bd6 {[%emt 0:00:19]} 52. Nxf7 {[%emt 0:00:10]} Kxf7 {[%emt 0:00:01]} 53. Kf2 {[%emt 0:00:22]} Ke7 {[%emt 0:00:41]} 54. Ke3 {[%emt 0:00:18]} Kd7 {[%emt 0:00:49]} 55. Rc1 {[%emt 0:00:33]} Bc7 {[%emt 0:01:24]} 56. Kd3 {[%emt 0:00:48]} Rf8 {[%emt 0:00:05]} 57. Bd1 {[%emt 0:00:07]} h5 {[%emt 0:00:39]} 58. Ra1 {[%emt 0:00:26]} b6 {[%emt 0:00:53]} 59. Ra2 {[%emt 0:00:35]} Rh8 {[%emt 0:00:20]} 60. Rg2 {[%emt 0:00:18]} Bd6 {[%emt 0:00:53]} 61. Bb3 {[%emt 0:01:08]} Rf8 {[%emt 0:00:27]} 62. Bd1 {[%emt 0:00:08]} Bc5 {[%emt 0:00:15]} 63. Ra2 {[%emt 0:00:23]} Ra8 {[%emt 0:00:25]} 64. Rg2 {[%emt 0:00:31]} Kd6 {[%emt 0:00:20]} 65. h4 {[%emt 0:01:00]} gxh4 {[%emt 0:01:09]} 66. gxh4 {[%emt 0:00:06]} Rf8 {[%emt 0:00:15]} 67. Rg5 {[%emt 0:00:53]} Rf4 {[%emt 0:00:47]} 68. Rxh5 {[%emt 0:00:18]} Bf2 {[%emt 0:00:24]} 69. Rh8 {[%emt 0:00:38]} Bxh4 {[%emt 0:00:56]} 70. Rc8 {[%emt 0:00:31]} Bf2 {[%emt 0:00:26]} 71. Rc6+ {[%emt 0:00:16]} Kd7 {[%emt 0:00:03]} 72. Ke2 {[%emt 0:01:00]} Bg1 {[%emt 0:00:34]} 73. Bb3 {[%emt 0:00:36]} Rh4 {[%emt 0:00:42]} 74. Rc1 {[%emt 0:00:37]} Rh2+ {[%emt 0:00:44]} 75. Kd3 {[%emt 0:00:02]} Rg2 {[%emt 0:00:28]} 76. Ra1 {[%emt 0:00:29]} Kd6 {[%emt 0:00:18]} 77. Rc1 {[%emt 0:00:14]} Bc5 {[%emt 0:00:07]} 78. Rh1 {[%emt 0:00:25]} Rb2 {[%emt 0:00:19]} 79. Bd1 {[%emt 0:00:14]} Ra2 {[%emt 0:00:37]} 80. Bb3 {[%emt 0:00:20]} Rf2 {[%emt 0:00:29]} 81. Bd1 {[%emt 0:00:10]} b3 {[%emt 0:00:27]} 82. Bxb3 {[%emt 0:00:46]} Rxf3+ {[%emt 0:00:01]} 83. Kc2 {[%emt 0:00:10]} Bd4 {[%emt 0:00:09]} 84. Rb1 {[%emt 0:00:50]} e5 {[%emt 0:00:37]} 85. Kd2 {[%emt 0:00:10]} e4 {[%emt 0:00:28]} 86. Bd1 {[%emt 0:01:00]} Rg3 {[%emt 0:01:09]} 87. Be2 {[%emt 0:01:23]} Bc3+ {[%emt 0:00:28]} 88. Kc2 {[%emt 0:00:08]} d4 {[%emt 0:00:18]} 89. Bf1 {[%emt 0:01:06]} Rf3 {[%emt 0:00:21]} 90. Rd1 {[%emt 0:00:30]} Kc5 {[%emt 0:00:14]} 91. Rb1 {[%emt 0:00:14]} Ba5 {[%emt 0:00:35]} 92. Rd1 {[%emt 0:00:24]} d3+ {[%emt 0:00:46]} 93. Kb3 {[%emt 0:00:42]} Kd4 {[%emt 0:00:09]} 94. Be2 {[%emt 0:00:33]} Rf2 {[%emt 0:00:25]} 95. Bh5 {[%emt 0:00:12]} e3 {[%emt 0:00:21]} 96. Rg1 {[%emt 0:00:30]} e2 {[%emt 0:00:25]} 0-1

[Event "XI Paracin Festival 2018"]
[Site "Paracin"]
[Date "2018.07.07"]
[Round "2"]
[White "Tugstumur, Yesuntumur"]
[Black "Wadsworth, Matthew J"]
[Result "1/2-1/2"]
[ECO "A65"]
[WhiteElo "2116"]
[BlackElo "2377"]
[Annotator "NA"]
[PlyCount "107"]
[EventDate "2018.07.06"]
[EventType "swiss"]
[EventCountry "SRB"]
[SourceTitle "playchess.com"]
[Source "ChessBase"]
[SourceQuality "1"]
[TimeControl "5400+30"]

1. d4 {[%emt 0:00:00]} Nf6 {[%emt 0:01:23]} 2. c4 {[%emt 0:00:00]} c5 {[%emt 0:00:15]} 3. d5 {[%emt 0:00:00]} e6 {[%emt 0:00:19]} 4. Nc3 {[%emt 0:00:00]} exd5 {[%emt 0:00:08]} 5. cxd5 {[%emt 0:00:02]} d6 {[%emt 0:00:11]} 6. e4 {[%emt 0:00:08]} g6 {[%emt 0:00:34]} 7. Bd3 {[%emt 0:00:11]} Bg7 {[%emt 0:00:20]} 8. h3 {[%emt 0:00:21]} O-O {[%emt 0:00:35]} 9. Nf3 {[%emt 0:00:31]} Nh5 {[%emt 0:00:18]} 10. O-O {[%emt 0:02:06]} a6 {[%emt 0:01:50]} 11. a4 {[%emt 0:00:55]} Nd7 {[%emt 0:00:10]} 12. Re1 {[%emt 0:03:31]} Re8 {[%emt 0:10:00] LiveBook: 89 Games} 13. Bg5 {[%emt 0:06:24]} Bf6 {[%emt 0:00:13] A70: Modern Benoni: 6 e4 g6 7 Nf3} 14. Be3 {[%emt 0:00:40]} Ne5 {[%emt 0:00:47]} 15. Be2 {[%emt 0:00:39]} Nxf3+ {[%emt 0:00:59]} 16. Bxf3 {[%emt 0:00:10]} Ng7 {[%emt 0:00:10]} 17. Qc2 {[%emt 0:08:09]} (17. a5 b5 18. axb6 Qxb6 19. Ra2 Bd7 20. Qc2 Be5 21. Nb1 {½-½ (52) Parligras,M (2596)-Pantsulaia,L (2612) Konya 2016}) 17... Bd7 {[%emt 0:06:37]} 18. Be2 {[%emt 0:09:33]} Rb8 {[%emt 0:00:43]} 19. a5 {[%emt 0:01:43]} Bg5 $146 {[%emt 0:05:21]} ({Predecessor:} 19... Bd4 20. Bxd4 cxd4 21. Nb1 Rc8 {0-1 (67) Nizov,A (2118)-Johansson,D (2140) Sweden 2015}) 20. Bf1 {[%emt 0:04:26]} Bxe3 {[%emt 0:16:29]} 21. Rxe3 {[%emt 0:00:07]} Qg5 {[%emt 0:00:10]} 22. Rae1 {[%emt 0:06:21]} (22. Nb1 $14) 22... f5 {[%emt 0:02:38]} 23. e5 {[%emt 0:12:24]} f4 {[%emt 0:01:16]} 24. Re4 {[%emt 0:00:25]} Bxh3 {[%emt 0:11:11]} 25. f3 {[%emt 0:06:12]} dxe5 $11 {[%emt 0:02:13]} 26. d6 {[%emt 0:01:27]} Nh5 {[%emt 0:10:45]} 27. Qb3+ {[%emt 0:00:29]} Kg7 {[%emt 0:01:44]} 28. Qd5 {[%emt 0:01:06]} Nf6 {[%emt 0:07:18]} 29. Qxc5 {[%emt 0:00:17]} Nd7 {[%emt 0:01:18]} 30. Qf2 {[%emt 0:03:17]} Be6 {[%emt 0:00:59]} 31. Na4 {[%emt 0:02:47]} Bd5 {[%emt 0:03:53]} 32. Rb4 {[%emt 0:03:00]} Bc6 {[%emt 0:02:50]} 33. Nc5 {[%emt 0:01:57]} Nxc5 {[%emt 0:06:11]} 34. Qxc5 {[%emt 0:00:08]} Rbc8 {[%emt 0:00:36]} 35. Rd1 {[%emt 0:06:49]} Qf5 {[%emt 0:02:17]} 36. Qf2 {[%emt 0:03:09]} Qd7 {[%emt 0:00:34]} 37. Bc4 {[%emt 0:05:53]} Rcd8 {[%emt 0:00:55]} 38. Bb3 {[%emt 0:00:40]} Qf5 {[%emt 0:00:39]} 39. Qc5 {[%emt 0:01:19]} Rd7 {[%emt 0:01:17]} 40. Bd5 {[%emt 0:00:55]} Bb5 {[%emt 0:00:50]} 41. Rxb5 {[%emt 0:04:24]} axb5 {[%emt 0:00:09]} 42. Qxb5 {[%emt 0:00:02]} e4 {[%emt 0:02:04]} 43. fxe4 {[%emt 0:00:06]} Qg4 {[%emt 0:00:00]} 44. Rf1 {[%emt 0:00:50]} Re5 {[%emt 0:00:34]} 45. Rxf4 {[%emt 0:00:42]} Qd1+ {[%emt 0:01:25]} 46. Qf1 {[%emt 0:00:04]} Qd4+ {[%emt 0:00:40]} 47. Qf2 {[%emt 0:00:13]} Qd1+ {[%emt 0:00:43]} 48. Qf1 {[%emt 0:00:04]} Rxd5 {[%emt 0:00:35]} 49. exd5 {[%emt 0:00:05]} Qxd5 {[%emt 0:00:01]} 50. Qc4 {[%emt 0:01:11]} Qd1+ {[%emt 0:00:47]} 51. Kh2 {[%emt 0:02:28]} Qxd6 {[%emt 0:00:24]} 52. Qc3+ {[%emt 0:00:12]} Kg8 {[%emt 0:00:23]} 53. Qc4+ {[%emt 0:00:09]} Kg7 {[%emt 0:00:23]} 54. Qc3+ {[%emt 0:00:09]} 1/2-1/2

[Event "XI Paracin Festival 2018"]
[Site "Paracin"]
[Date "2018.07.07"]
[Round "2"]
[White "Harshini A"]
[Black "Harvey, Marcus R"]
[Result "0-1"]
[ECO "C11"]
[WhiteElo "2037"]
[BlackElo "2362"]
[Annotator "NA"]
[PlyCount "132"]
[EventDate "2018.07.06"]
[EventType "swiss"]
[EventCountry "SRB"]
[SourceTitle "playchess.com"]
[Source "ChessBase"]
[SourceQuality "1"]
[TimeControl "5400+30"]

1. e4 {[%emt 0:00:00]} e6 {[%emt 0:01:41]} 2. d4 {[%emt 0:00:00]} d5 {[%emt 0:00:36]} 3. Nc3 {[%emt 0:00:00]} Nf6 {[%emt 0:00:06]} 4. Bg5 {[%emt 0:00:00]} dxe4 {[%emt 0:00:05]} 5. Nxe4 {[%emt 0:00:06]} Be7 {[%emt 0:00:04]} 6. Bxf6 {[%emt 0:00:09]} gxf6 {[%emt 0:00:04]} 7. Nf3 {[%emt 0:00:12]} f5 {[%emt 0:00:05]} 8. Nc3 {[%emt 0:00:06]} a6 {[%emt 0:00:02] C13: Französische Verteidigung (Klassisches System)} 9. Qd2 {[%emt 0:00:57]} b5 {[%emt 0:00:35]} 10. O-O-O {[%emt 0:04:46]} Qd6 {[%emt 0:00:05]} (10... b4 11. Na4 Qd5 12. b3 Bd7 13. Bc4 Qd6 14. d5 e5 15. Rhe1 e4 16. Nd4 {1-0 (40) Carlsen,M (2832)-Grischuk,A (2750) chess.com INT 2017}) 11. Kb1 {[%emt 0:02:40] LiveBook: 6 Partien} Bb7 {[%emt 0:00:21]} 12. Ne2 $146 {[%emt 0:03:22]} ({Vorgänger:} 12. Ne5 Nd7 13. f4 Nxe5 14. fxe5 Qb6 15. Rg1 O-O-O 16. Ne2 {0-1 (50) Daulyte,D (2440)-Harvey,M (2275) chess.com INT 2017}) 12... Nd7 {[%emt 0:00:34]} 13. Qf4 {[%emt 0:03:46]} O-O-O {[%emt 0:00:36]} 14. Qxd6 {[%emt 0:01:15]} Bxd6 {[%emt 0:00:14]} ({Resist} 14... cxd6 15. Nf4 $17) 15. Ng5 {[%emt 0:03:08]} Rdf8 {[%emt 0:00:05]} 16. f3 {[%emt 0:01:56]} Nf6 {[%emt 0:00:53]} 17. Nc3 {[%emt 0:03:08]} Rhg8 {[%emt 0:00:22]} 18. Nh3 {[%emt 0:02:22]} Rd8 {[%emt 0:01:42]} 19. Nf2 {[%emt 0:03:36]} Bb4 {[%emt 0:00:45]} 20. Ne2 {[%emt 0:02:36] [#]} Nd5 $1 {[%emt 0:00:11]} 21. c3 {[%emt 0:00:24]} Bf8 {[%emt 0:00:24]} 22. Rd3 {[%emt 0:00:30]} (22. Re1 $17 {was necessary.}) 22... Bh6 {[%emt 0:00:04]} 23. Nd1 {[%emt 0:01:09]} Nb6 {[%emt 0:04:06]} 24. Nc1 {[%emt 0:02:47]} Nc4 {[%emt 0:01:02]} 25. Nb3 {[%emt 0:01:32]} f6 {[%emt 0:07:41]} 26. g3 {[%emt 0:03:40]} Rd6 {[%emt 0:04:20]} 27. Kc2 {[%emt 0:01:50]} Be4 {[%emt 0:08:49]} 28. fxe4 {[%emt 0:01:38]} fxe4 {[%emt 0:00:03]} 29. Rd2 {[%emt 0:01:56]} Nxd2 {[%emt 0:00:04]} 30. Nxd2 {[%emt 0:00:08]} Bxd2 {[%emt 0:00:03]} 31. Kxd2 {[%emt 0:00:07]} c5 {[%emt 0:00:05]} 32. Ke3 {[%emt 0:12:52]} f5 {[%emt 0:00:13]} 33. Bh3 {[%emt 0:03:42]} Rgd8 {[%emt 0:00:33]} 34. Nf2 {[%emt 0:05:23]} cxd4+ {[%emt 0:00:07]} 35. cxd4 {[%emt 0:00:04]} Rxd4 {[%emt 0:00:16]} 36. g4 {[%emt 0:00:16]} Rd3+ {[%emt 0:01:31]} 37. Nxd3 {[%emt 0:00:08]} Rxd3+ {[%emt 0:00:05]} 38. Kf4 {[%emt 0:00:07]} Rxh3 {[%emt 0:00:02]} 39. gxf5 {[%emt 0:00:08]} Rf3+ {[%emt 0:00:16]} 40. Kxe4 {[%emt 0:00:13]} Rxf5 {[%emt 0:00:03]} 41. Rc1+ {[%emt 0:02:16]} Kd7 {[%emt 0:00:15]} 42. Rc2 {[%emt 0:00:08]} Kd6 {[%emt 0:00:09]} 43. Rd2+ {[%emt 0:01:37]} Rd5 {[%emt 0:00:04]} 44. Rf2 {[%emt 0:00:21]} Re5+ {[%emt 0:00:04]} 45. Kd3 {[%emt 0:02:38]} Rh5 {[%emt 0:00:24]} 46. Ke4 {[%emt 0:05:59]} Rh4+ {[%emt 0:00:24]} 47. Kf3 {[%emt 0:00:53]} Kc5 {[%emt 0:01:55]} 48. Rd2 $19 {[%emt 0:01:46]} e5 {[%emt 0:00:54]} 49. Ke3 {[%emt 0:02:16]} a5 {[%emt 0:00:26]} 50. Kf3 {[%emt 0:10:26]} Ra4 {[%emt 0:00:47]} 51. Rc2+ {[%emt 0:01:44]} Kd5 {[%emt 0:00:23]} 52. b3 {[%emt 0:02:35]} Rf4+ {[%emt 0:00:16]} 53. Ke3 {[%emt 0:04:26]} Rh4 {[%emt 0:00:21]} 54. Kf3 {[%emt 0:01:16]} h5 {[%emt 0:01:52]} 55. Kg3 {[%emt 0:01:23]} Rg4+ {[%emt 0:00:08]} 56. Kf3 {[%emt 0:00:14]} e4+ {[%emt 0:00:35]} 57. Ke3 {[%emt 0:00:20]} Rh4 {[%emt 0:00:03]} 58. Rd2+ {[%emt 0:01:37]} Ke5 {[%emt 0:00:13]} 59. Rg2 {[%emt 0:00:29]} Rh3+ {[%emt 0:00:06]} 60. Ke2 {[%emt 0:00:31]} Kd4 {[%emt 0:00:16]} 61. Kd2 {[%emt 0:00:36]} b4 {[%emt 0:00:59]} 62. Re2 {[%emt 0:02:37]} Rd3+ {[%emt 0:00:22]} 63. Kc2 {[%emt 0:00:16]} Rc3+ {[%emt 0:00:10]} 64. Kd1 {[%emt 0:00:51]} Rf3 {[%emt 0:00:21]} 65. Kd2 {[%emt 0:00:36]} Rf1 {[%emt 0:00:59]} 66. Rg2 {[%emt 0:01:28]} Ra1 {[%emt 0:00:05]} 0-1

[Event "XI Paracin Festival 2018"]
[Site "Paracin"]
[Date "2018.07.07"]
[Round "2"]
[White "Rakshitta Ravi"]
[Black "Radovic, Luka"]
[Result "0-1"]
[ECO "B94"]
[WhiteElo "2026"]
[BlackElo "2344"]
[Annotator "NA"]
[PlyCount "60"]
[EventDate "2018.07.06"]
[EventType "swiss"]
[EventCountry "SRB"]
[SourceTitle "playchess.com"]
[Source "ChessBase"]
[SourceQuality "1"]
[TimeControl "5400+30"]

1. e4 {[%emt 0:01:54]} c5 {[%emt 0:02:20]} 2. Nf3 {[%emt 0:00:09]} d6 {[%emt 0:02:10]} 3. d4 {[%emt 0:00:09]} cxd4 {[%emt 0:00:08]} 4. Nxd4 {[%emt 0:00:05]} Nf6 {[%emt 0:00:11]} 5. Nc3 {[%emt 0:00:03]} a6 {[%emt 0:00:23]} 6. Bg5 {[%emt 0:00:08]} Nbd7 {[%emt 0:01:11]} 7. Bc4 {[%emt 0:00:22]} h6 {[%emt 0:06:19] LiveBook: 45 Partien} 8. Be3 {[%emt 0:00:37]} g6 {[%emt 0:10:14]} 9. Qe2 {[%emt 0:03:49]} Bg7 {[%emt 0:05:54]} 10. O-O {[%emt 0:08:30]} Nc5 {[%emt 0:04:11]} 11. e5 {[%emt 0:13:48]} dxe5 {[%emt 0:05:10]} 12. Nc6 {[%emt 0:01:51]} bxc6 {[%emt 0:08:16]} 13. Bxc5 {[%emt 0:00:10]} Qc7 {[%emt 0:07:15]} 14. f4 $11 {[%emt 0:09:19]} Nd5 {[%emt 0:13:12]} 15. fxe5 {[%emt 0:14:45]} Bxe5 {[%emt 0:02:58]} 16. Rae1 {[%emt 0:18:33]} Bxh2+ {[%emt 0:06:59]} 17. Kh1 {[%emt 0:00:02]} O-O {[%emt 0:04:03]} 18. Bxe7 {[%emt 0:02:22]} Nxe7 {[%emt 0:02:09]} 19. Qxe7 {[%emt 0:01:58]} Bf5 {[%emt 0:01:41]} 20. Rxf5 {[%emt 0:05:01]} gxf5 {[%emt 0:00:33]} 21. Qf6 {[%emt 0:00:09]} Qf4 {[%emt 0:03:25]} 22. Re7 {[%emt 0:02:50]} Qxc4 {[%emt 0:02:00]} 23. Kxh2 {[%emt 0:06:07]} Qf4+ {[%emt 0:00:24]} 24. Kh3 {[%emt 0:04:01]} Rae8 {[%emt 0:01:08]} 25. Ne2 {[%emt 0:03:14]} Qg5 {[%emt 0:00:56]} 26. Qxg5+ {[%emt 0:00:12]} hxg5 {[%emt 0:00:07]} 27. Rxe8 {[%emt 0:00:04]} Rxe8 {[%emt 0:00:06]} 28. Nd4 {[%emt 0:00:03]} Re3+ {[%emt 0:00:51]} 29. Kh2 {[%emt 0:00:09]} c5 {[%emt 0:00:38]} 30. Nxf5 {[%emt 0:01:03]} Rf3 0-1